Cogmind - Beta 11.1 @@@ ROGUE MODE // 2022.06.24 @ 11:49:28 Player: Demise Result: Destroyed by G-34 Mercenary with Small Laser Performance ------------- Evolutions (0) 0 Regions Visited (1) 200 Robots Destroyed (21) 105 Value Destroyed (479) 479 Prototype IDs (0) 0 Alien Tech Used (0) 0 Bonus (0) 0 TOTAL SCORE: 784 Bonus ------- None Cogmind --------- Core Integrity 0/250 Matter 215/300 Energy 250/250 System Corruption 2% Temperature Cool (6) Movement Rolling (110) Ox2 Location -10/Materials Parts ------- > --- POWER (1) -------- Ion Engine > --- PROPULSION (2) --- Wheel Wheel > --- UTILITY (2) ------ High-capacity Storage Unit Light Armor Plating > --- WEAPON (2) ------- Light Assault Rifle Light Assault Rifle > --- INVENTORY (20) --- Heavy EM Pulse Gun Heavy EM Pulse Gun Heavy EM Pulse Gun Particle Gun Particle Gun Light Assault Rifle Light Assault Rifle Rocket Launcher Rocket Launcher Mini Grenade Launcher Flail Peak State ------------ > --- POWER ------------ Light Nuclear Core > --- PROPULSION ------- Wheel Wheel > --- UTILITY ---------- High-capacity Storage Unit Signal Interpreter > --- WEAPON ----------- Heavy EM Pulse Gun Medium Laser > --- INVENTORY -------- Wheel Wheel Wheel Light Armor Plating Heavy EM Pulse Gun Heavy EM Pulse Gun Heavy EM Pulse Gun Particle Gun Particle Gun Light Assault Rifle Rocket Launcher Mini Grenade Launcher Flail [Rating: 12] Favorites ----------- Power Light Ion Engine Engine Light Ion Engine Power Core Light Nuclear Core Propulsion Wheel Wheel Wheel Utility High-capacity Storage Unit Device Seismic Detector Storage High-capacity Storage Unit Processor Signal Interpreter Protection Light Armor Plating Weapon Light Assault Rifle Energy Gun Medium Laser Ballistic Gun Light Assault Rifle Build | -11 -10 ------- Run | Scr Mat Slots Evolved . | . . Power . | . . Propulsion . | . . Utility . | . . Weapon . | . . Parts Attached 30 | 7 23 Power 4 | 1 3 Engine 2 | 1 1 Core 2 | . 2 Reactor . | . . Propulsion 8 | 2 6 Treads . | . . Leg . | . . Wheel 8 | 2 6 Hover . | . . Flight . | . . Utility 6 | 2 4 Device 2 | 1 1 Storage 2 | 1 1 Processor 1 | . 1 Hackware . | . . Protection 1 | . 1 Artifact . | . . Weapon 12 | 2 10 Energy Gun 5 | 1 4 Energy Cannon . | . . Ballistic Gun 7 | 1 6 Ballistic Cannon . | . . Launcher . | . . Special Weapon . | . . Impact Weapon . | . . Slashing Weapon . | . . Piercing Weapon . | . . Special Melee Weapon . | . . Unidentified Prototypes . | . . Parts Lost 8 | . 8 Power 1 | . 1 Propulsion 4 | . 4 Utility 1 | . 1 Weapon 2 | . 2 Highest Loss Streak 3 | . 3 To Critical Strikes . | . . Average Slot Usage (%) 93 | . 93 Engine 7 | . 7 Core 5 | . 5 Wheel 27 | . 27 Device 4 | . 4 Storage 14 | . 14 Processor 4 | . 4 Protection 2 | . 2 Energy Gun 7 | . 7 Ballistic Gun 18 | . 18 Naked Turns . | . . Heaviest Build 52 | 12 52 Greatest Support 20 | 20 20 Greatest Overweight (x) 2 | . 2 Average Overweight (x) . | . 1 Largest Inventory Capacity 20 | 8 20 Average Capacity 14 | 6 15 Most Carried 14 | 7 14 Average Carried 8 | 4 8 Final Capacity 20 | 8 20 Final Carried 11 | 7 11 Class Distribution -------------------- 59% | Mutant 40% | Scavenger-Mutant Dominant Class ---------------- Mutant | -10/Materials Resources | -11 -10 ----------- Run | Scr Mat Matter Collected 496 | 236 260 Remotely . | . . Salvage Created 727 | 146 581 Parts 49 | 13 36 Haulers Intercepted . | . . Recyclers Shooed . | . . Parts Field Recycled . | . . Retrieved Matter . | . . Parts Self-Destructed . | . . Prevented . | . . Kills | -11 -10 ------- Run | Scr Mat Combat Hostiles Destroyed 14 | . 14 Guns 14 | . 14 Classes Destroyed 7 | 2 5 Worker 1 | . 1 Builder 1 | . 1 Tunneler 3 | 3 . Recycler 1 | 1 . Watcher 1 | . 1 Swarmer 3 | . 3 Grunt 11 | . 11 Best Kill Streak 3 | 2 3 Combat Bots Only 3 | . 3 Max Kills in Single Turn 1 | 1 1 Gunslinging . | . . Exploded . | . . Melee . | . . Uniques/NPCs Destroyed . | . . Combat | -11 -10 -------- Run | Scr Mat Damage Taken 882 | . 882 Core 250 | . 250 Absorbed by Shields . | . . Regen/Repaired (Parts) 121 | . 121 Core Remaining (%) 100 | 100 . Volleys Fired 85 | 16 69 Largest 2 | 2 2 Hottest 130 | 70 130 Shots Fired 169 | 32 137 Gun 169 | 32 137 Cannon . | . . Launcher . | . . Special . | . . Kinetic 113 | 16 97 Thermal 44 | 16 28 Explosive . | . . Electromagnetic 12 | . 12 Robot Hit Streak 16 | 6 16 Robot Miss Streak 6 | 3 6 Penetration Max . | . . Secondary Targets 1 | . 1 Max Gunslinging Chain 1 | . 1 Shots Hit Robots 117 | 17 100 Core Hits 38 | 5 33 Critical Kills . | . . Critical Parts Destroyed . | . . Critical Strikes 2 | 1 1 Burn 2 | 1 1 Melee Attacks . | . . Impact . | . . Slashing . | . . Piercing . | . . Sneak Attacks . | . . Combat Hostiles . | . . Follow-up Attacks . | . . Damage Inflicted 1250 | 200 1050 Guns 1214 | 200 1014 Cannons . | . . Explosions . | . . Melee . | . . Ramming 36 | . 36 Kinetic 676 | 75 601 Thermal 419 | 125 294 Explosive . | . . Electromagnetic 119 | . 119 Impact . | . . Slashing . | . . Piercing . | . . Highest Corruption 2 | . 2 Average Corruption 2 | . 2 Corruption Purged . | . . Corruption Blocked . | . . Effects 6 | . 6 Matter Fused 2 | . 2 Heat Flow Errors 1 | . 1 Energy Discharges 1 | . 1 Parts Rejected 1 | . 1 Misfires 1 | . 1 Overload Shots . | . . Overflow Damage 12 | . 12 Projectiles . | . . Explosions . | . . Melee 12 | . 12 Knockbacks . | . . Impact . | . . Kinetic . | . . Secondary . | . . Self-Inflicted Damage 17 | . 17 Shots . | . . Rammed 2 | . 2 Targets Rammed 2 | . 2 Kicked . | . . Crushed . | . . Highest Temperature 348 | 100 348 Average Temperature 100 | 41 114 Received Heat Transfer 396 | . 396 Effects 2 | . 2 Energy Bleed 1 | . 1 Short Circuit 1 | . 1 Siege Activations . | . . Robots Corrupted . | . . Combat Hostiles . | . . Parts Fried . | . . Impact Corruptions 1 | . 1 Robots Melted . | . . Combat Hostiles . | . . Parts Melted . | . . Heat Transferred 1295 | 444 851 Parts Sabotaged . | . . Parts Stolen . | . . Parts Stripped . | . . Power Chain Reactions . | . . Missiles Intercepted . | . . Alert | -11 -10 ------- Run | Scr Mat Peak Influence 248 | 20 248 Initial 13 | . 13 Average 130 | 8 143 Maximum Alert Level 1 | . 1 Low Security (%) 71 | 100 67 Level 1 28 | . 32 Level 2 . | . . Level 3 . | . . Level 4 . | . . Level 5 . | . . High Security . | . . Max Security . | . . Squads Dispatched 4 | . 4 Investigation 3 | . 3 Extermination . | . . Reinforcement 1 | . 1 Assault . | . . Garrison . | . . Intercept . | . . Searches Triggered . | . . Construction Impeded . | . . Haulers Reinforced . | . . Active Scanning Responses . | . . Cargo Convoy Interrupts . | . . Stealth | -11 -10 --------- Run | Scr Mat Distress Signals 2 | . 2 Communications Jammed . | . . Distress Signals . | . . Times Spotted 20 | . 20 Peak Tracking Total 4 | . 4 Tactical Retreats 1 | . 1 Traps | -11 -10 ------- Run | Scr Mat Traps Triggered 2 | . 2 Indirectly . | . . Trap Hack Attempts . | . . Triggered . | . . Disarmed . | . . Reprogrammed . | . . Reused . | . . Traps Extracted . | . . Installed . | . . Triggered . | . . Machines | -11 -10 ---------- Run | Scr Mat Machines Disabled . | . . Max in Single Turn . | . . Machines Sabotaged . | . . Garrisons Compromised . | . . Overloaded Fab Kills . | . . Hacking | -11 -10 --------- Run | Scr Mat Machines Accessed 7 | . 7 Terminals 5 | . 5 Fabricators . | . . Repair Stations 1 | . 1 Recycling Units 1 | . 1 Scanalyzers . | . . Garrison Access . | . . Total Hacks 30 | . 30 Successful 23 | . 23 Failed 7 | . 7 Catastrophic . | . . Database Lockouts . | . . Manual 21 | . 21 Terminals 20 | . 20 Fabricators . | . . Repair Stations 8 | . 8 Recycling Units 2 | . 2 Scanalyzers . | . . Garrison Access . | . . Terminal Hacks 8 | . 8 Robot Analysis 7 | . 7 Terminal Index 1 | . 1 Fabricator Hacks . | . . Repair Station Hacks 6 | . 6 Scan Component 3 | . 3 Repair 3 | . 3 Recycling Unit Hacks 1 | . 1 Retrieve Components 1 | . 1 Scanalyzer . | . . Garrison Access Hacks . | . . Unauthorized Hacks 8 | . 8 Terminals 7 | . 7 Assimilate 1 | . 1 Botnet 5 | . 5 Operators 1 | . 1 Fabricators . | . . Repair Stations . | . . Recycling Units 1 | . 1 Tunnel 1 | . 1 Scanalyzers . | . . Garrison Access . | . . Data Cores Recovered . | . . Used . | . . Hacking Detections 6 | . 6 Full Trace Events 2 | . 2 Feedback Events . | . . Feedback Blocked . | . . Robot Schematics Acquired . | . . Robots Built . | . . Authchips . | . . Time . | . . Total Robot Build Rating . | . . Part Schematics Acquired . | . . Parts Built . | . . Authchips . | . . Time . | . . Total Part Build Rating . | . . Parts Repaired 3 | . 3 Time 88 | . 88 Parts Recycled . | . . Recycled Matter . | . . Retrieved Matter . | . . Retrieved Components 2 | . 2 Parts Scanalyzed . | . . Part Schematics Acquired . | . . Parts Damaged . | . . Bothacking | -11 -10 ------------ Run | Scr Mat Used RIF Installer . | . . Robots Hacked . | . . Non-combat . | . . Combat . | . . Robot Hacks Applied . | . . Relay Couplers Released . | . . Fabnet Peak Effective % . | . . Robots Rewired . | . . Allies Hacked . | . . Hacks Repelled . | . . Allies | -11 -10 -------- Run | Scr Mat Total Allies . | . . Largest Group . | . . Highest-Rated Group . | . . Highest-Rated Ally . | . . Total Orders . | . . Ally Attacks . | . . Total Damage . | . . Kills . | . . Allies Corrupted . | . . Allies Melted . | . . Intel | -11 -10 ------- Run | Scr Mat Robot Analysis Total 7 | . 7 Derelict Logs Recovered . | . . Drone Launches . | . . Drone Recoveries . | . . Exploration | -11 -10 ------------- Run | Scr Mat Turns Passed 906 | 88 818 Spaces Moved 490 | 38 452 Core 23 | 23 . Treads . | . . Legs . | . . Wheels 467 | 15 452 Hover . | . . Flight . | . . Fastest Speed 50 | 50 80 Average Speed 93 | 61 96 Slowest Speed 110 | 80 110 Overloaded Moves . | . . Propulsion Burnouts . | . . Robots Hopped . | . . Cave-ins Triggered . | . . Exploration Rate (%) 34 | 3 66 Regions Visited 1 Branch Regions . Pre-discovered Areas 1 | . 1 Known Exits Taken . | . . Unknown Exits Taken 1 | 1 . Scrap Searched . | . . Spaces Dug . | . . Terrain Destroyed . | . . Melee . | . . Projectile . | . . AOE . | . . Terrain Rammed . | . . Walls Destroyed . | . . Machines Disabled . | . . Actions | -11 -10 --------- Run | Scr Mat Total 789 | 71 718 Wait 148 | . 148 Move 489 | 37 452 Hop . | . . Pick Up 21 | 11 10 Fast Attach 13 | 3 10 Attach 13 | 4 9 Detach 8 | . 8 Swap 4 | . 4 Drop 6 | . 6 Fire 85 | 16 69 Melee . | . . Ram 2 | . 2 Kick . | . . Crush . | . . Escape Stasis . | . . Rewire . | . . Trap . | . . Miscellaneous . | . . Route ------- -11/Scrapyard -10/Materials (discovered 4 exits: *Mat x3 / *Min) History --------- Turn | Location | Event 13 | -11/Scrapyard | Discovered new exit (range 16) 89 | -11/Scrapyard | Entered Materials 258 | -10/Materials | Discovered new exit (range 13) 313 | -10/Materials | Build established: Mutant 478 | -10/Materials | Discovered new exit (range 10) 493 | -10/Materials | Discovered new exit (range 16) 531 | -10/Materials | Identified exit to Materials 552 | -10/Materials | Identified exit to Mines 597 | -10/Materials | Discovered exit to Materials (range 15) 711 | -10/Materials | Core integrity fell below 50% 747 | -10/Materials | Core integrity fell below 20% 773 | -10/Materials | Lost 3 parts (1p2n) 825 | -10/Materials | Repaired Broken Lgt. Assault Rifle 846 | -10/Materials | Build established: Scavenger-Mutant 853 | -10/Materials | Repaired Lgt. Assault Rifle 880 | -10/Materials | Repaired Wheel 907 | -10/Materials | Destroyed by G-34 Mercenary with Small Laser Last Messages --------------- Rating: 1 Time: 26 >>Repair Repairing Lgt. Assault Rifle... ETC: 26 00853_ Repair station completes Lgt. Assault Rifle repairs. 00854_ Connecting with Repair Station... >>Scan(Wheel) Scanning Wheel... Ready to Repair: Wheel Rating: 1 Time: 26 >>Repair Repairing Wheel... ETC: 26 00880_ Repair station completes Wheel repairs. 00880_ Acquired Wheel. 00890_ System corrupted: FCS attempts to trigger Lgt. Assault Rifle. 00890_ System corrupted: Lgt. Assault Rifle misfires. Map ----- +----------------------------------------------------+ | # ##! #?? ?????####### | | # ##! +??? ??????# | | # #?#!! #??? ??????#" | | # #????# ###?#+#??????#T | | # ^ ###### ### ##?????#" | | # # ####### | | #!! # + % | | #!! + ############ % % | | #!! # ###########?????????# """ | | ###### ## #?????????# """ | | ????# # """ "" #?????????# """ | | ????# # """ T" #?????????# """ | | ????# + """ "" #?????????# """ | | ????# = # #?????????# | | ?#####%%## """ #?????????####### | | ?# *[% !## """ #???????????????? | | ?# !%= ## """ = #???????????????? | | ?# [ [ ## #???????????????? | | ?# [ ###########???????????????? | | ?# #????????????????????? | | ?#]] #????????????????????? | | ?########## #??????"??????o??????? | | ??????????# #????""" ????????????? | | ???????#### ### """ """????????? | | ???????# = g ??????? | | ???????# =@[ ??????? | | ???#######/#########/#+#??????????? | | ???# = ! #????????????????? | | ???#!!= """ """ #????????????????? | | ???#!! """ R" #????????????????? | | ???#!= """ """ #????????????????? | | ???# #????????????????? | | ???# #????????????????? | | ???###############????????????????? | | | | | | | | | | | | | | | | | | | | | | | | | | | | | | | | | +----------------------------------------------------+ Best States ------------- Heat Dissipation 25 Energy Generation 14 Energy Capacity 250 Matter Stores 300 Matter Capacity 300 Sight Range 16 Terrain Scan Density 10 Armor Coverage 150 Evasion (%) 50 Item Schematics ----------------- None Robot Schematics ------------------ None Fabricated ------------ Nothing Alien Tech Used ----------------- None Achievements -------------- None Challenges ------------ None Game ------ Seed UltimateRiotMallet Manual? 0 Play Time 00:12:34 Cumulative 642.7 hours Start 2022.06.24 @ 11:39:17 End 2022.06.24 @ 11:49:28 Sessions 1 Manual Loads 0 Difficulty Rogue Special Mode None Game No. 519 Rogue 519 Adventurer 0 Explorer 0 Win Type - Total 8 Types 7/0/0/1/0/0/0/0/0 Lore% 75 Gallery% 86 Achievement% 69 Wizard Run 0 Options --------- ASCII 0 Keyboard 1 Movement Numpad Keybinds 0 Fullscreen 1 Font 12/Terminus Map View 83x54 Tactical HUD 1 Map Filters NONE Filters NONE Steam 1 RUN: 983eabd7-6010-43b2-8271-95679e55b684